fUSD/lending_fUSD_20241223
["ID","MTS","AMOUNT","RATE_DAILY","PERIOD"]
[346414596,1734951037017,-500.0,0.00019178,2]
[346414597,1734951037027,-500.0,0.00019178,2]
[346414598,1734951037036,-500.0,0.00019178,2]
[346414599,1734951037045,-500.0,0.00019178,2]
[346414600,1734951037054,-792.79,0.00019178,2]
[346414601,1734951037063,-2235.12,0.00019178,2]
[346414602,1734951037072,-500.0,0.00019178,2]
[346414603,1734951037082,-500.0,0.00019178,2]
[346414604,1734951037091,-521.38933738,0.00019178,2]
[346414605,1734951037101,-500.0,0.00019178,2]
[346414606,1734951037110,-500.0,0.00019178,2]
[346414607,1734951037119,-500.0,0.00019178,2]
[346414608,1734951037129,-500.0,0.00019178,2]
[346414609,1734951037138,-500.0,0.00019178,2]
[346414610,1734951037148,-500.0,0.00019178,2]
[346414611,1734951037157,-500.0,0.00019178,2]
[346414612,1734951037167,-500.0,0.00019178,2]
[346414613,1734951037176,-500.0,0.00019178,2]
[346414614,1734951037186,-1167.29,0.00019178,2]
[346414615,1734951037196,-625.16,0.00019178,2]
[346414616,1734951037205,-500.0,0.00019178,2]
[346414617,1734951037215,-500.0,0.00019178,2]
[346414618,1734951037224,-500.0,0.00019178,2]
[346414619,1734951037234,-500.0,0.00019178,2]
[346414620,1734951037243,-500.0,0.00019178,2]
[346414621,1734951037253,-500.0,0.00019178,2]
[346414622,1734951037262,-500.0,0.00019178,2]
[346414623,1734951037500,-500.0,0.00019178,2]
[346414624,1734951037511,-500.0,0.00019178,2]
[346414625,1734951037522,-500.0,0.00019178,2]
[346414626,1734951037532,-500.0,0.00019178,2]
[346414627,1734951037541,-500.0,0.00019178,2]
[346414628,1734951037551,-500.0,0.00019178,2]
[346414629,1734951037561,-742.7,0.00019178,2]
[346414631,1734951037571,-766.57,0.00019178,2]
[346414633,1734951037580,-1864.7,0.00019178,2]
[346414634,1734951037590,-500.0,0.00019178,2]
[346414635,1734951037599,-500.0,0.00019178,2]
[346414636,1734951037609,-500.0,0.00019178,2]
[346414637,1734951037618,-550.36,0.00019178,2]
[346414638,1734951037630,-500.0,0.00019178,2]
[346414639,1734951037640,-500.0,0.00019178,2]
[346414640,1734951037653,-503.42428456,0.00019178,2]
[346414641,1734951037663,-500.0,0.00019178,2]
[346414642,1734951037673,-500.0,0.00019178,2]
[346414643,1734951037682,-1228.76,0.00019178,2]
[346414644,1734951037693,-500.57417738,0.00019178,2]
[346414645,1734951037703,-500.0,0.00019178,2]
[346414646,1734951037713,-899.42,0.00019178,2]
[346414647,1734951037723,-500.0,0.00019178,2]
[346414648,1734951037734,-500.0,0.00019178,2]
[346414649,1734951037744,-500.0,0.00019178,2]
[346414650,1734951037754,-500.0,0.00019178,2]
[346414651,1734951037764,-1706.79,0.00019178,2]
[346414652,1734951037773,-500.0,0.00019178,2]
[346414653,1734951037783,-500.0,0.00019178,2]
[346414654,1734951037793,-500.0,0.00019178,2]
[346414655,1734951037803,-500.0,0.00019178,2]
[346414656,1734951037813,-500.0,0.00019178,2]
[346414657,1734951037823,-500.0,0.00019178,2]
[346414658,1734951037832,-500.0,0.00019178,2]
[346414659,1734951037842,-2052.91,0.00019178,2]
[346414660,1734951037852,-500.0,0.00019178,2]
[346414661,1734951037862,-500.0,0.00019178,2]
[346414662,1734951037872,-500.0,0.00019178,2]
[346414663,1734951037883,-500.0,0.00019178,2]
[346414664,1734951037892,-500.0,0.00019178,2]
[346414665,1734951037902,-263.09714709,0.00019178,2]
[346414666,1734951037912,-500.0,0.00019178,2]
[346414667,1734951037922,-500.0,0.00019178,2]
[346414668,1734951037931,-500.0,0.00019178,2]
[346414669,1734951037941,-813.25,0.00019178,2]
[346414670,1734951037951,-500.0,0.00019178,2]
[346414671,1734951037962,-500.0,0.00019178,2]
[346414672,1734951037971,-500.0,0.00019178,2]
[346414673,1734951037981,-500.52808902,0.00019178,2]
[346414674,1734951037991,-1952.13,0.00019178,2]
[346414675,1734951038001,-500.0,0.00019178,2]
[346414676,1734951038010,-500.0,0.00019178,2]
[346414677,1734951038020,-500.0,0.00019178,2]
[346414678,1734951038031,-500.0,0.00019178,2]
[346414679,1734951038040,-500.0,0.00019178,2]
[346414680,1734951038050,-500.0,0.00019178,2]
[346414681,1734951038059,-1791.57,0.00019178,2]
[346414682,1734951038070,-831.23,0.00019178,2]
[346414683,1734951038079,-500.0,0.00019178,2]
[346414684,1734951038089,-630.98,0.00019178,2]
[346414685,1734951038099,-500.0,0.00019178,2]
[346414686,1734951038108,-500.0,0.00019178,2]
[346414687,1734951038118,-767.93,0.00019178,2]
[346414688,1734951038128,-509.6,0.00019178,2]
[346414689,1734951038139,-500.0,0.00019178,2]
[346414690,1734951038148,-2000.0,0.00019178,15]
[346414691,1734951038158,-500.0,0.00019178,2]
[346414692,1734951038167,-1080.28,0.00019178,2]
[346414693,1734951038177,-500.0,0.00019178,2]
[346414694,1734951038186,-396.03494384,0.00019178,2]
[346414732,1734951038923,-103.96505616,0.00019178,2]
[346414734,1734951038933,-500.0,0.00019178,2]
[346414736,1734951038943,-500.0,0.00019178,2]
[346414738,1734951038952,-1244.03,0.00019178,2]
[346414740,1734951038962,-500.0,0.00019178,2]
[346414742,1734951038972,-500.0,0.00019178,2]
[346414744,1734951038981,-500.0,0.00019178,2]
[346414746,1734951038990,-547.68,0.00019178,2]
[346414748,1734951038999,-608.51,0.00019178,2]
[346414751,1734951039009,-1428.37,0.00019178,2]
[346414752,1734951039019,-500.0,0.00019178,2]
[346414754,1734951039029,-2077.99,0.00019178,2]
[346414756,1734951039039,-500.0,0.00019178,2]
[346414758,1734951039048,-500.0,0.00019178,2]
[346414761,1734951039058,-522.55053002,0.00019178,2]
[346414763,1734951039067,-752.79,0.00019178,2]
[346414765,1734951039077,-580.67,0.00019178,2]
[346414767,1734951039086,-1033.15,0.00019178,2]
[346414769,1734951039096,-500.0,0.00019178,2]
[346414771,1734951039105,-500.0,0.00019178,2]
[346414773,1734951039114,-500.0,0.00019178,2]
[346414775,1734951039123,-500.0,0.00019178,2]
[346414777,1734951039135,-500.0,0.00019178,2]
[346414779,1734951039144,-500.0,0.00019178,2]
[346414781,1734951039154,-1601.99,0.00019178,2]
[346414783,1734951039164,-500.0,0.00019178,2]
[346414785,1734951039173,-500.0,0.00019178,2]
[346414787,1734951039183,-500.0,0.00019178,2]
[346414789,1734951039192,-500.0,0.00019178,2]
[346414791,1734951039202,-500.0,0.00019178,2]
[346414793,1734951039211,-500.0,0.00019178,2]
[346414795,1734951039220,-500.0,0.00019178,2]
[346414797,1734951039230,-1023.46,0.00019178,2]
[346414799,1734951039239,-500.0,0.00019178,2]
[346414801,1734951039248,-500.0,0.00019178,2]
[346414803,1734951039258,-500.0,0.00019178,2]
[346414805,1734951039267,-500.0,0.00019178,2]
[346414807,1734951039277,-2048.73,0.00019178,2]
[346414809,1734951039286,-500.0,0.00019178,2]
[346414811,1734951039295,-500.0,0.00019178,2]
[346414813,1734951039305,-500.0,0.00019178,2]
[346414815,1734951039314,-500.0,0.00019178,2]
[346414817,1734951039323,-500.0,0.00019178,2]
[346414819,1734951039332,-1618.45,0.00019178,2]
[346414821,1734951039342,-500.0,0.00019178,2]
[346414823,1734951039352,-500.0,0.00019178,2]
[346414825,1734951039363,-524.93594984,0.00019178,2]
[346414827,1734951039372,-500.0,0.00019178,2]
[346414829,1734951039381,-500.0,0.00019178,2]
[346414831,1734951039391,-500.0,0.00019178,2]
[346414833,1734951039400,-1329.0,0.00019178,2]
[346414835,1734951039409,-500.0,0.00019178,2]
[346414837,1734951039418,-898.31,0.00019178,2]
[346414839,1734951039428,-606.80815223,0.00019178,2]
[346414841,1734951039437,-500.0,0.00019178,2]
[346414843,1734951039447,-695.87,0.00019178,2]
[346414845,1734951039458,-906.25,0.00019178,2]
[346414847,1734951039468,-500.0,0.00019178,2]
[346414849,1734951039477,-500.0,0.00019178,2]
[346414851,1734951039488,-500.0,0.00019178,2]
[346414853,1734951039498,-500.0,0.00019178,2]
[346414855,1734951039507,-500.0,0.00019178,2]
[346414857,1734951039516,-500.0,0.00019178,2]
[346414859,1734951039526,-500.0,0.00019178,2]
[346414861,1734951039536,-500.0,0.00019178,2]
[346414863,1734951039546,-500.0,0.00019178,2]
[346414865,1734951039555,-500.0,0.00019178,2]
[346414867,1734951039565,-500.0,0.00019178,2]
[346414869,1734951039575,-1427.38,0.00019178,2]
[346414870,1734951039584,-578.49067175,0.00019178,2]
[346414878,1734951039687,-458.40932825,0.00019178,2]
[346414879,1734951039697,-41.59067175,0.00019178,2]
[346414884,1734951041413,-868.24770791,0.00019078,2]
[346414885,1734951041423,-458.40932825,0.00019178,2]
[346414886,1734951041433,-500.0,0.00019178,2]
[346414887,1734951041442,-569.09,0.00019178,2]
[346414888,1734951041451,-500.0,0.00019178,2]
[346414889,1734951041461,-513.19,0.00019178,2]
[346414890,1734951041471,-500.0,0.00019178,2]
[346414891,1734951041480,-522.44,0.00019178,2]
[346414892,1734951041489,-500.0,0.00019178,2]
[346414893,1734951041499,-500.0,0.00019178,2]
[346414894,1734951041508,-1051.3,0.00019178,2]
[346414895,1734951041517,-500.0,0.00019178,2]
[346414896,1734951041526,-500.0,0.00019178,2]
[346414897,1734951041536,-815.69,0.00019178,2]
[346414898,1734951041545,-500.0,0.00019178,2]
[346414899,1734951041555,-1608.53,0.00019178,2]
[346414900,1734951041564,-1794.64,0.00019178,2]
[346414901,1734951041573,-500.0,0.00019178,2]
[346414902,1734951041583,-500.0,0.00019178,2]
[346414903,1734951041592,-785.67,0.00019178,2]
[346414904,1734951041602,-503.75038659,0.00019178,2]
[346414905,1734951041611,-999.32,0.00019178,2]
[346414906,1734951041620,-500.0,0.00019178,2]
[346414907,1734951041630,-500.0,0.00019178,2]
[346414908,1734951041642,-500.0,0.00019178,2]
[346414909,1734951041656,-500.0,0.00019178,2]
[346414910,1734951041666,-500.0,0.00019178,2]
[346414911,1734951041676,-500.0,0.00019178,2]
[346414912,1734951041686,-500.0,0.00019178,2]
[346414913,1734951041696,-543.46671059,0.00019178,2]
[346414914,1734951041705,-2414.44,0.00019178,2]
[346414915,1734951041715,-439.02068229,0.00019178,2]
[346414916,1734951041730,-60.97931771,0.00019178,2]
[346414917,1734951041740,-500.0,0.00019178,2]
[346414918,1734951041749,-500.0,0.00019178,2]
[346414919,1734951041759,-500.0,0.00019178,2]
[346414920,1734951041769,-500.0,0.00019178,2]
[346414921,1734951041778,-500.0,0.00019178,2]
[346414922,1734951041788,-500.0,0.00019178,2]
[346414923,1734951041797,-500.0,0.00019178,2]
[346414924,1734951041807,-500.0,0.00019178,2]
[346414925,1734951041817,-139.02068229,0.00019178,2]
[346414926,1734951042408,-360.97931771,0.00019178,2]
[346414927,1734951042418,-500.0,0.00019178,2]
[346414928,1734951042427,-1081.39789548,0.00019178,2]
[346414929,1734951042445,-1109.81775672,0.00019178,2]
[346414930,1734951042457,-312.77852834,0.00019178,2]
[346414931,1734951042477,-64.51581946,0.00019178,2]
[346414932,1734951042486,-500.0,0.00019178,2]
[346414933,1734951042495,-500.0,0.00019178,2]
[346414934,1734951042504,-500.0,0.00019178,2]
[346414935,1734951042513,-500.0,0.00019178,2]
[346414936,1734951042523,-500.0,0.00019178,2]
[346414937,1734951042532,-500.0,0.00019178,2]
[346414938,1734951042541,-500.0,0.00019178,2]
[346414939,1734951042550,-193.383612,0.00019178,2]
[346414940,1734951042562,-306.616388,0.00019178,2]
[346414941,1734951042570,-500.0,0.00019178,2]
[346414942,1734951042580,-500.0,0.00019178,2]
[346414943,1734951042589,-46.62151422,0.00019178,2]
[346414944,1734951042639,-453.37848578,0.00019178,2]
[346414945,1734951042651,-1220.52,0.00019178,2]
[346414946,1734951042661,-500.0,0.00019178,2]
[346414947,1734951042670,-26.55575422,0.00019178,2]
[346414998,1734951043666,-422.03902218,0.00019136,2]
[346415002,1734951043698,-446.20868572,0.00019136,2]
[346415004,1734951043707,-473.44424578,0.00019178,2]
[346415005,1734951043716,-500.0,0.00019178,2]
[346415006,1734951043725,-24.4895885,0.00019178,2]
[346415007,1734951043946,-475.5104115,0.00019178,2]
[346415008,1734951043955,-500.0,0.00019178,2]
[346415009,1734951043965,-700.0,0.00019178,2]
[346415010,1734951043974,-654.44,0.00019178,2]
[346415011,1734951043982,-500.0,0.00019178,2]
[346415012,1734951043991,-500.0,0.00019178,2]
[346415013,1734951044000,-500.0,0.00019178,2]
[346415014,1734951044009,-1059.85,0.00019178,2]
[346415015,1734951044019,-500.0,0.00019178,2]
[346415016,1734951044027,-500.0,0.00019178,2]
[346415017,1734951044037,-500.0,0.00019178,2]
[346415018,1734951044046,-866.92,0.00019178,2]
[346415019,1734951044055,-684.87,0.00019178,2]
[346415020,1734951044064,-500.0,0.00019178,2]
[346415021,1734951044073,-500.0,0.00019178,2]
[346415022,1734951044083,-953.32,0.00019178,2]
[346415023,1734951044092,-500.0,0.00019178,2]
[346415024,1734951044101,-500.0,0.00019178,2]
[346415025,1734951044110,-1859.22,0.00019178,2]
[346415026,1734951044119,-500.0,0.00019178,2]
[346415027,1734951044128,-641.15,0.00019178,2]
[346415028,1734951044140,-500.0,0.00019178,2]
[346415029,1734951044149,-500.0,0.00019178,2]
[346415030,1734951044158,-500.0,0.00019178,2]
[346415031,1734951044167,-824.98,0.00019178,2]
[346415032,1734951044176,-1714.22,0.00019178,2]
[346415033,1734951044185,-500.0,0.00019178,2]
[346415034,1734951044194,-500.0,0.00019178,2]
[346415035,1734951044203,-500.0,0.00019178,2]
[346415036,1734951044212,-500.0,0.00019178,2]
[346415037,1734951044221,-500.0,0.00019178,2]
[346415038,1734951044230,-500.0,0.00019178,2]
[346415039,1734951044239,-500.0,0.00019178,2]
[346415040,1734951044248,-500.0,0.00019178,2]
[346415041,1734951044257,-2330.16,0.00019178,2]
[346415042,1734951044266,-725.22,0.00019178,2]
[346415043,1734951044275,-1090.95,0.00019178,2]
[346415044,1734951044284,-500.0,0.00019178,2]
[346415045,1734951044294,-1662.31,0.00019178,2]
[346415046,1734951044303,-566.61162718,0.00019178,2]
[346415047,1734951044312,-500.0,0.00019178,2]
[346415048,1734951044321,-500.0,0.00019178,2]
[346415049,1734951044330,-500.0,0.00019178,2]
[346415050,1734951044339,-895.72,0.00019178,2]
[346415051,1734951044348,-500.0,0.00019178,2]
[346415052,1734951044357,-500.0,0.00019178,2]
[346415053,1734951044366,-500.0,0.00019178,2]
[346415054,1734951044375,-509.3594999,0.00019178,2]
[346415055,1734951044386,-500.0,0.00019178,2]
[346415056,1734951044395,-500.0,0.00019178,2]
[346415057,1734951044403,-500.0,0.00019178,2]
[346415058,1734951044412,-500.0,0.00019178,2]
[346415059,1734951044421,-500.0,0.00019178,2]
[346415060,1734951044430,-500.0,0.00019178,2]
[346415061,1734951044439,-500.0,0.00019178,2]
[346415062,1734951044448,-500.0,0.00019178,2]
[346415063,1734951044457,-500.0,0.00019178,2]
[346415064,1734951044466,-4030.36,0.00019178,2]
[346415065,1734951044475,-500.0,0.00019178,2]
[346415066,1734951044483,-500.0,0.00019178,2]
[346415067,1734951044492,-500.0,0.00019178,2]
[346415068,1734951044501,-500.0,0.00019178,2]
[346415069,1734951044510,-503.77718765,0.00019178,2]
[346415070,1734951044519,-500.0,0.00019178,2]
[346415071,1734951044528,-500.0,0.00019178,2]
[346415072,1734951044537,-875.88,0.00019178,2]
[346415073,1734951044546,-500.0,0.00019178,2]
[346415074,1734951044555,-1984.18,0.00019178,2]
[346415075,1734951044563,-1725.82,0.00019178,2]
[346415076,1734951044572,-500.0,0.00019178,2]
[346415077,1734951044582,-500.0,0.00019178,2]
[346415078,1734951044591,-1327.26,0.00019178,2]
[346415079,1734951044600,-513.99,0.00019178,2]
[346415080,1734951044610,-500.0,0.00019178,2]
[346415081,1734951044619,-500.0,0.00019178,2]
[346415082,1734951044629,-632.83,0.00019178,2]
[346415083,1734951044640,-500.0,0.00019178,2]
[346415084,1734951044653,-1954.44,0.00019178,2]
[346415085,1734951044662,-500.0,0.00019178,2]
[346415086,1734951044671,-500.0,0.00019178,2]
[346415087,1734951044681,-500.0,0.00019178,2]
[346415088,1734951044690,-567.37849261,0.00019178,2]
[346415089,1734951044699,-500.0,0.00019178,2]
[346415090,1734951044708,-500.0,0.00019178,2]
[346415091,1734951044718,-1077.56,0.00019178,2]
[346415092,1734951044728,-500.0,0.00019178,2]
[346415093,1734951044737,-505.72,0.00019178,2]
[346415094,1734951044746,-500.0,0.00019178,2]
[346415095,1734951044755,-682.6,0.00019178,2]
[346415096,1734951044764,-500.0,0.00019178,2]
[346415097,1734951044773,-500.0,0.00019178,2]
[346415098,1734951044781,-850.66,0.00019178,2]
[346415099,1734951044790,-500.0,0.00019178,2]
[346415100,1734951044799,-500.0,0.00019178,2]
[346415101,1734951044808,-500.0,0.00019178,2]
[346415102,1734951044817,-466.52236243,0.00019178,2]
[346415103,1734951044826,-508.72153367,0.00019178,2]
[346415104,1734951044835,-681.42,0.00019178,2]
[346415105,1734951044844,-963.27,0.00019178,2]
[346415106,1734951044853,-500.0,0.00019178,2]
[346415107,1734951044862,-500.0,0.00019178,2]
[346415108,1734951044871,-500.0,0.00019178,2]
[346415109,1734951044879,-500.0,0.00019178,2]
[346415110,1734951044890,-2086.27,0.00019178,2]
[346415111,1734951044899,-500.0,0.00019178,2]
[346415112,1734951044908,-500.0,0.00019178,2]
[346415113,1734951044918,-852.63,0.00019178,2]
[346415114,1734951044927,-1810.63,0.00019178,2]
[346415115,1734951044936,-500.0,0.00019178,2]
[346415116,1734951044945,-500.0,0.00019178,2]
[346415117,1734951044954,-500.0,0.00019178,2]
[346415118,1734951044964,-503.9924852,0.00019178,2]
[346415119,1734951044973,-502.92753952,0.00019178,2]
[346415120,1734951044983,-500.0,0.00019178,2]
[346415121,1734951044992,-500.0,0.00019178,2]
[346415122,1734951045001,-565.14,0.00019178,2]
[346415123,1734951045010,-1943.04,0.00019178,2]
[346415124,1734951045019,-880.56,0.00019178,2]
[346415125,1734951045028,-500.0,0.00019178,2]
[346415126,1734951045037,-500.0,0.00019178,2]
[346415127,1734951045046,-1071.09,0.00019178,2]
[346415128,1734951045055,-500.0,0.00019178,2]
[346415129,1734951045063,-688.94,0.00019178,2]
[346415130,1734951045073,-500.0,0.00019178,2]
[346415131,1734951045081,-500.0,0.00019178,2]
[346415132,1734951045090,-500.0,0.00019178,2]
[346415133,1734951045099,-690.77,0.00019178,2]
[346415134,1734951045108,-530.8,0.00019178,2]
[346415135,1734951045117,-500.0,0.00019178,2]
[346415136,1734951045126,-500.0,0.00019178,2]
[346415137,1734951045136,-500.0,0.00019178,2]
[346415138,1734951045145,-255.82362643,0.00019178,2]
[346415139,1734951045154,-500.0,0.00019178,2]
[346415140,1734951045164,-500.0,0.00019178,2]
[346415141,1734951045172,-2158.03,0.00019178,2]
[346415142,1734951045181,-500.0,0.00019178,2]
[346415143,1734951045190,-995.35,0.00019178,2]
[346415144,1734951045199,-500.0,0.00019178,2]
[346415145,1734951045208,-500.0,0.00019178,2]
[346415146,1734951045217,-500.0,0.00019178,2]
[346415147,1734951045226,-500.0,0.00019178,2]
[346415148,1734951045235,-500.0,0.00019178,2]
[346415149,1734951045244,-500.0,0.00019178,2]
[346415150,1734951045253,-500.0,0.00019178,2]
[346415151,1734951045261,-523.3,0.00019178,2]
[346415152,1734951045270,-500.0,0.00019178,2]
[346415153,1734951045279,-1101.1,0.00019178,2]
[346415154,1734951045288,-772.57,0.00019178,2]
[346415155,1734951045297,-500.0,0.00019178,2]
[346415156,1734951045306,-607.8,0.00019178,2]
[346415157,1734951045314,-500.0,0.00019178,2]
[346415158,1734951045323,-987.25,0.00019178,2]
[346415159,1734951045332,-500.0,0.00019178,2]
[346415160,1734951045624,-500.0,0.00019178,2]
[346415161,1734951045653,-503.74275948,0.00019178,2]
[346415162,1734951045662,-689.11,0.00019178,2]
[346415163,1734951045671,-500.0,0.00019178,2]
[346415164,1734951045681,-333.10505265,0.00019178,2]
[346415165,1734951045690,-500.0,0.00019178,2]
[346415166,1734951045699,-500.0,0.00019178,2]
[346415167,1734951045709,-500.0,0.00019178,2]
[346415168,1734951045718,-1488.46,0.00019178,2]
[346415169,1734951045727,-1155.87,0.00019178,2]
[346415170,1734951045737,-1065.96,0.00019178,2]
[346415171,1734951045746,-500.0,0.00019178,2]
[346415172,1734951045755,-500.0,0.00019178,2]
[346415173,1734951045763,-876.25,0.00019178,2]
[346415174,1734951045773,-500.0,0.00019178,2]
[346415175,1734951045782,-500.0,0.00019178,2]
[346415176,1734951045792,-500.0,0.00019178,2]
[346415177,1734951045801,-580.41,0.00019178,2]
[346415178,1734951045810,-2139.47,0.00019178,2]
[346415179,1734951045820,-500.0,0.00019178,2]
[346415180,1734951045829,-500.0,0.00019178,2]
[346415183,1734951045839,-500.0,0.00019178,2]
[346415185,1734951045848,-500.0,0.00019178,2]
[346415187,1734951045858,-500.0,0.00019178,2]
[346415190,1734951045867,-500.0,0.00019178,2]
[346415192,1734951045884,-500.0,0.00019178,2]
[346415193,1734951045896,-500.0,0.00019178,2]
[346415194,1734951045905,-500.0,0.00019178,2]
[346415195,1734951045915,-500.0,0.00019178,2]
[346415196,1734951045924,-500.0,0.00019178,2]
[346415197,1734951045933,-384.82,0.00019178,2]
[346415198,1734951045942,-500.0,0.00019178,2]
[346415199,1734951045952,-500.0,0.00019178,2]
[346415200,1734951045961,-500.0,0.00019178,2]
[346415201,1734951045970,-500.0,0.00019178,2]
[346415202,1734951045979,-1475.64,0.00019178,2]
[346415203,1734951045988,-1354.88,0.00019178,2]
[346415204,1734951046000,-500.0,0.00019178,2]
[346415205,1734951046011,-500.0,0.00019178,2]
[346415206,1734951046024,-771.96,0.00019178,2]
[346415207,1734951046033,-150.0,0.00019178,2]
[346415208,1734951046042,-587.89,0.00019178,2]
[346415209,1734951046051,-500.0,0.00019178,2]
[346415210,1734951046061,-953.5,0.00019178,2]
[346415211,1734951046070,-500.0,0.00019178,2]
[346415212,1734951046079,-500.0,0.00019178,2]
[346415213,1734951046089,-524.02,0.00019178,2]
[346415214,1734951046098,-1089.19,0.00019178,2]
[346415215,1734951046107,-500.0,0.00019178,2]
[346415216,1734951046117,-500.0,0.00019178,2]
[346415217,1734951046126,-500.0,0.00019178,2]
[346415218,1734951046136,-500.0,0.00019178,2]
[346415219,1734951046146,-770.61,0.00019178,2]
[346415220,1734951046155,-500.0,0.00019178,2]
[346415221,1734951046165,-500.0,0.00019178,2]
[346415222,1734951046174,-639.27,0.00019178,2]
[346415223,1734951046183,-500.0,0.00019178,2]
[346415224,1734951046193,-500.0,0.00019178,2]
[346415225,1734951046203,-500.0,0.00019178,2]
[346415226,1734951046212,-963.93,0.00019178,2]
[346415227,1734951046222,-500.0,0.00019178,2]
[346415228,1734951046231,-5000.0,0.00019178,2]
[346415229,1734951046240,-1139.91,0.00019178,2]
[346415230,1734951046249,-500.0,0.00019178,2]
[346415231,1734951046259,-503.95315731,0.00019178,2]
[346415232,1734951046268,-1090.67,0.00019178,2]
[346415233,1734951046277,-500.0,0.00019178,2]
[346415234,1734951046286,-1928.53,0.00019178,2]
[346415235,1734951046296,-797.29,0.00019178,2]
[346415236,1734951046305,-2605.26,0.00019178,2]
[346415237,1734951046315,-567.83,0.00019178,2]
[346415238,1734951046324,-500.0,0.00019178,2]
[346415239,1734951046333,-500.0,0.00019178,2]
[346415240,1734951046343,-554.27,0.00019178,2]
[346415241,1734951046352,-517.19543342,0.00019178,2]
[346415242,1734951046361,-500.0,0.00019178,2]
[346415243,1734951046370,-500.0,0.00019178,2]
[346415244,1734951046379,-500.0,0.00019178,2]
[346415245,1734951046391,-500.0,0.00019178,2]
[346415246,1734951046400,-1183.6,0.00019178,2]
[346415247,1734951046410,-500.0,0.00019178,2]
[346415248,1734951046419,-799.86,0.00019178,2]
[346415249,1734951046428,-1342.27,0.00019178,2]
[346415250,1734951046438,-500.0,0.00019178,2]
[346415251,1734951046447,-500.0,0.00019178,2]
[346415252,1734951046457,-500.0,0.00019178,2]
[346415253,1734951046466,-500.0,0.00019178,2]
[346415254,1734951046475,-500.0,0.00019178,2]
[346415255,1734951046484,-500.0,0.00019178,2]
[346415256,1734951046493,-500.0,0.00019178,2]
[346415257,1734951046503,-500.0,0.00019178,2]
[346415258,1734951046512,-500.0,0.00019178,2]
[346415259,1734951046521,-500.0,0.00019178,2]
[346415261,1734951046531,-500.0,0.00019178,2]
[346415262,1734951046540,-500.0,0.00019178,2]
[346415263,1734951046550,-500.0,0.00019178,2]
[346415264,1734951046559,-527.96415657,0.00019178,2]
[346415265,1734951046568,-816.93,0.00019178,2]
[346415266,1734951046578,-1883.2,0.00019178,2]
[346415267,1734951046587,-884.97,0.00019178,2]
[346415268,1734951046596,-500.0,0.00019178,2]
[346415269,1734951046606,-2940.96,0.00019178,2]
[346415270,1734951046615,-500.0,0.00019178,2]
[346415271,1734951046625,-500.0,0.00019178,2]
[346415272,1734951046634,-825.82,0.00019178,2]
[346415273,1734951046648,-500.0,0.00019178,2]
[346415274,1734951046657,-514.39870094,0.00019178,2]
[346415275,1734951046667,-743.72,0.00019178,2]
[346415276,1734951046677,-500.0,0.00019178,2]